bitfinex/quotes_BTCUSD_20251010
["timestamp","ask_amount","ask_price","bid_price","bid_amount"]
[1760076055348,0.31804273,121740.0,121730.0,0.35349915]
[1760076055563,0.31804273,121740.0,121730.0,0.67439382]
[1760076055790,0.00076273,121740.0,121730.0,0.67439382]
[1760076055974,0.23256273,121740.0,121730.0,0.67439382]
[1760076058766,0.39684727,121740.0,121730.0,0.35349915]
[1760076059273,0.73421194,121740.0,121730.0,0.16667112]
[1760076060403,0.41331727,121740.0,121730.0,0.16667112]
[1760076060625,0.73421194,121740.0,121730.0,0.16667112]
[1760076061315,0.18151727,121740.0,121730.0,0.16667112]
[1760076061553,0.71778194,121740.0,121730.0,0.35349915]
[1760076061775,0.48594194,121740.0,121730.0,0.35349915]
[1760076061990,0.71778194,121740.0,121730.0,0.35349915]
[1760076063583,0.48594194,121740.0,121730.0,0.35349915]
[1760076063806,0.73357194,121740.0,121730.0,0.18920112]
[1760076064013,0.73357194,121740.0,121730.0,0.16667112]
[1760076064250,0.50177194,121740.0,121730.0,0.19111112]
[1760076064725,0.85321499,121740.0,121730.0,0.00091794]
[1760076064954,1.08509499,121740.0,121730.0,0.00091794]
[1760076065387,0.85321499,121740.0,121730.0,0.00091794]
[1760076065612,1.08513499,121740.0,121730.0,0.00091794]
[1760076067040,0.85321499,121740.0,121730.0,0.00091794]
[1760076067041,0.85421499,121740.0,121730.0,0.00091794]
[1760076067250,1.17261499,121740.0,121730.0,0.00091794]
[1760076069871,0.85521499,121740.0,121730.0,0.00091794]
[1760076070091,1.17257499,121740.0,121730.0,0.00091794]
[1760076070749,0.94069499,121740.0,121730.0,0.00091794]
[1760076070990,1.2189021,121740.0,121730.0,0.00091794]
[1760076071196,1.21120372,121740.0,121730.0,0.00091794]
[1760076071414,1.16487661,121740.0,121730.0,0.00091794]
[1760076071619,0.95108503,121740.0,121730.0,0.00091794]
[1760076071822,0.52308727,121740.0,121730.0,0.00091794]
[1760076071969,0.95108503,121740.0,121730.0,0.00091794]
[1760076072175,0.95877928,121740.0,121730.0,0.00091794]
[1760076072892,0.53078152,121740.0,121730.0,0.00091794]
[1760076073106,0.95877928,121740.0,121730.0,0.00091794]
[1760076074528,0.95108503,121740.0,121730.0,0.00091794]
[1760076074736,0.9849359,121740.0,121730.0,0.00091794]
[1760076075000,0.9849359,121740.0,121730.0,0.02559921]
[1760076075235,0.63372503,121740.0,121730.0,0.02559921]
[1760076075413,0.95108503,121740.0,121730.0,0.02559921]
[1760076076936,0.63372503,121740.0,121730.0,0.02559921]
[1760076077133,0.95108503,121740.0,121730.0,0.02559921]
[1760076077569,0.71920503,121740.0,121730.0,0.02559921]
[1760076077787,0.95108503,121740.0,121730.0,0.02559921]
[1760076079118,0.52308727,121740.0,121730.0,0.02559921]
[1760076079327,0.95108503,121740.0,121730.0,0.02559921]
[1760076079777,0.71920503,121740.0,121730.0,0.02559921]
[1760076079995,0.95104503,121740.0,121730.0,0.02559921]
[1760076080694,0.71920503,121740.0,121730.0,0.02559921]
[1760076080905,0.95104503,121740.0,121730.0,0.02559921]
[1760076081747,0.96670687,121740.0,121730.0,0.02559921]
[1760076083138,0.53870911,121740.0,121730.0,0.02559921]
[1760076083370,0.96670687,121740.0,121730.0,0.02559921]
[1760076084425,0.71920503,121740.0,121730.0,0.02559921]
[1760076084624,0.95104503,121740.0,121730.0,0.02559921]
[1760076085781,0.71920503,121740.0,121730.0,0.02559921]
[1760076086006,0.95104503,121740.0,121730.0,0.02559921]
[1760076086437,0.63372503,121740.0,121730.0,0.02559921]
[1760076086657,0.95104503,121740.0,121730.0,0.02559921]
[1760076088241,0.95873995,121740.0,121730.0,0.02559921]
[1760076088465,0.72689995,121740.0,121730.0,0.02559921]
[1760076088895,0.95873995,121740.0,121730.0,0.02559921]
[1760076090046,0.95104503,121740.0,121730.0,0.02559921]
[1760076090261,0.95874127,121740.0,121730.0,0.02559921]
[1760076090750,0.63372503,121740.0,121730.0,0.02559921]
[1760076090978,0.95104503,121740.0,121730.0,0.02559921]
[1760076091179,0.52304727,121740.0,121730.0,0.02559921]
[1760076091610,0.95104503,121740.0,121730.0,0.02559921]
[1760076092027,0.20572727,121740.0,121730.0,0.02559921]
[1760076092270,0.95104503,121740.0,121730.0,0.02559921]
[1760076093397,0.95874673,121740.0,121730.0,0.02559921]
[1760076093665,0.95104503,121740.0,121730.0,0.02559921]
[1760076093903,0.95874673,121740.0,121730.0,0.02559921]
[1760076096174,1.01473955,121740.0,121730.0,0.02559921]
[1760076096969,0.78289955,121740.0,121730.0,0.02559921]
[1760076097215,1.01473955,121740.0,121730.0,0.02559921]
[1760076098239,0.78289955,121740.0,121730.0,0.02559921]
[1760076098475,1.01473955,121740.0,121730.0,0.02559921]
[1760076099175,0.53906073,121740.0,121730.0,0.02559921]
[1760076099404,0.88157849,121740.0,121730.0,0.02559921]
[1760076099640,0.96705849,121740.0,121730.0,0.02559921]
[1760076100623,0.95917173,121740.0,121730.0,0.02559921]
[1760076101474,0.64185173,121740.0,121730.0,0.02559921]
[1760076101696,0.95917173,121740.0,121730.0,0.02559921]
[1760076101898,0.72733173,121740.0,121730.0,0.02559921]
[1760076102111,0.95917173,121740.0,121730.0,0.02559921]
[1760076103351,0.72733173,121740.0,121730.0,0.02559921]
[1760076103565,0.95917173,121740.0,121730.0,0.02559921]
[1760076103784,1.03916853,121740.0,121730.0,0.02559921]
[1760076104017,0.80732853,121740.0,121730.0,0.02559921]
[1760076104234,1.03916853,121740.0,121730.0,0.02559921]
[1760076106158,0.72733173,121740.0,121730.0,0.02559921]
[1760076106408,0.95917173,121740.0,121730.0,0.02559921]
[1760076107073,0.72733173,121740.0,121730.0,0.02559921]
[1760076107297,0.95917173,121740.0,121730.0,0.02559921]
[1760076109372,0.64185173,121740.0,121730.0,0.02559921]
[1760076109569,0.95917173,121740.0,121730.0,0.02559921]
[1760076109793,0.72733173,121740.0,121730.0,0.02559921]
[1760076110003,0.95917173,121740.0,121730.0,0.02559921]
[1760076110250,0.64185173,121740.0,121730.0,0.02559921]
[1760076110451,0.87369173,121740.0,121730.0,0.02559921]
[1760076110675,0.95917173,121740.0,121730.0,0.02559921]
[1760076112936,0.61900173,121740.0,121730.0,0.04075921]
[1760076113144,0.93632173,121740.0,121730.0,0.04075921]
[1760076113563,0.93632173,121740.0,121730.0,0.02559921]
[1760076113777,0.95405173,121740.0,121730.0,0.02559921]
[1760076114888,0.63673173,121740.0,121730.0,0.02559921]
[1760076115123,0.95405173,121740.0,121730.0,0.02559921]
[1760076116650,1.03404853,121740.0,121730.0,0.02559921]
[1760076119534,0.71672853,121740.0,121730.0,0.02559921]
[1760076119757,0.95405173,121740.0,121730.0,0.02559921]
[1760076120891,0.52605397,121740.0,121730.0,0.02559921]
[1760076121103,0.95405173,121740.0,121730.0,0.02559921]
[1760076122276,0.72221173,121740.0,121730.0,0.02559921]
[1760076122490,0.93632173,121740.0,121730.0,0.04075921]
[1760076122717,0.93632173,121740.0,121730.0,0.05208921]
[1760076123198,0.92800997,121740.0,121730.0,0.05208921]
[1760076123444,0.92800997,121740.0,121730.0,0.02559921]
[1760076124346,0.71289997,121740.0,121730.0,0.02559921]
[1760076124793,0.71290458,121740.0,121730.0,0.02559921]
[1760076125031,0.69517458,121740.0,121730.0,0.02559921]
[1760076125258,0.93529926,121740.0,121730.0,0.02559921]
[1760076125902,0.95302926,121740.0,121730.0,0.02559921]
[1760076126412,0.72118926,121740.0,121730.0,0.02559921]
[1760076126639,0.95302926,121740.0,121730.0,0.02559921]
[1760076127305,0.72118926,121740.0,121730.0,0.02559921]
[1760076127536,0.49859553,121740.0,121730.0,0.07749921]
[1760076127772,0.00870631,121740.0,121730.0,0.24179724]
[1760076128076,0.08648,121740.0,121730.0,0.75291706]
[1760076128531,0.31832,121740.0,121730.0,0.75291706]
[1760076129221,0.31732,121740.0,121730.0,0.75291706]
[1760076129690,0.31732,121740.0,121730.0,0.79122028]
[1760076129907,0.31732,121740.0,121730.0,0.78306896]
[1760076130355,0.31732,121740.0,121730.0,0.79117926]
[1760076130626,0.26356052,121750.0,121740.0,0.16428454]
[1760076130848,0.09979073,121750.0,121740.0,0.6441823]
[1760076131047,0.33159073,121750.0,121740.0,0.6441823]
[1760076131276,0.33159073,121750.0,121740.0,0.21618454]
[1760076131478,0.3321031,121750.0,121740.0,0.24086061]
[1760076131625,0.3321031,121750.0,121740.0,0.24177855]
[1760076131840,0.0148231,121750.0,121740.0,0.35505251]
[1760076132066,0.2466231,121750.0,121740.0,0.35505251]
[1760076132289,0.0148231,121750.0,121740.0,1.12305027]
[1760076133159,0.0158231,121750.0,121740.0,1.12305027]
[1760076133336,0.0158231,121750.0,121740.0,1.35509027]
[1760076133536,0.0158231,121750.0,121740.0,1.33645855]
[1760076133746,0.0148231,121750.0,121740.0,1.33645855]
[1760076135014,0.0148231,121750.0,121740.0,1.65716157]
[1760076135445,0.0148231,121750.0,121740.0,1.33645855]
[1760076135725,0.0148231,121750.0,121740.0,1.56853855]
[1760076136180,0.0148231,121750.0,121740.0,1.33645855]
[1760076136406,0.0148231,121750.0,121740.0,1.56849855]
[1760076136632,0.0148231,121750.0,121740.0,1.33645855]
[1760076136875,0.0148231,121750.0,121740.0,1.56849855]
[1760076137337,0.0148231,121750.0,121740.0,1.33645855]
[1760076137790,0.0148231,121750.0,121740.0,1.56849855]
[1760076138009,0.0148231,121750.0,121740.0,1.33645855]
[1760076138257,0.0148231,121750.0,121740.0,1.56849855]
[1760076138494,0.0148231,121750.0,121740.0,1.33625863]
[1760076140545,0.0148231,121750.0,121740.0,0.69485259]
[1760076141031,0.0148231,121750.0,121740.0,1.33625863]
[1760076146444,0.0148231,121750.0,121740.0,1.65696165]
[1760076146656,1e-08,121750.0,121740.0,2.61907071]
[1760076146898,1e-08,121750.0,121740.0,1.91396164]
[1760076147313,1e-08,121750.0,121740.0,1.68196164]
[1760076147536,1e-08,121750.0,121740.0,1.91408164]
[1760076147758,1e-08,121750.0,121740.0,1.68196164]
[1760076147985,1e-08,121750.0,121740.0,2.04408164]
[1760076149606,1e-08,121750.0,121740.0,2.04508164]
[1760076150087,1e-08,121750.0,121740.0,2.04504164]
[1760076150812,1e-08,121750.0,121740.0,1.81296164]
[1760076151088,1e-08,121750.0,121740.0,2.04504164]
[1760076151326,1e-08,121750.0,121740.0,1.81296164]
[1760076151783,1e-08,121750.0,121740.0,2.04504164]
[1760076152317,1e-08,121750.0,121740.0,1.81296164]
[1760076152577,1e-08,121750.0,121740.0,2.04504164]
[1760076153022,1e-08,121750.0,121740.0,1.81396164]
[1760076153250,1e-08,121750.0,121740.0,2.04604164]
[1760076153478,1e-08,121750.0,121740.0,2.04600164]
[1760076154217,1e-08,121750.0,121740.0,1.81396164]
[1760076154431,1e-08,121750.0,121740.0,2.04600164]
[1760076157696,1e-08,121750.0,121740.0,2.04596164]
[1760076159533,1e-08,121750.0,121740.0,2.7760707]
[1760076159775,1e-08,121750.0,121740.0,3.0080707]
[1760076160243,1e-08,121750.0,121740.0,1.81396164]
[1760076160467,1e-08,121750.0,121740.0,2.04596164]
[1760076161390,1e-08,121750.0,121740.0,2.7760707]
[1760076161617,1e-08,121750.0,121740.0,2.04600164]
[1760076162344,1e-08,121750.0,121740.0,1.81396164]
[1760076162602,1e-08,121750.0,121740.0,2.04600164]
[1760076162816,1e-08,121750.0,121740.0,2.02100165]
[1760076163930,1e-08,121750.0,121740.0,1.78896165]
[1760076164146,1e-08,121750.0,121740.0,2.02100165]
[1760076165005,1e-08,121750.0,121740.0,1.78896165]
[1760076165253,1e-08,121750.0,121740.0,2.02100165]
[1760076166373,1e-08,121750.0,121740.0,1.78896165]
[1760076166665,1e-08,121750.0,121740.0,2.02100165]
[1760076167661,1e-08,121750.0,121740.0,2.02096165]
[1760076169442,1e-08,121750.0,121740.0,1.78896165]
[1760076169656,1e-08,121750.0,121740.0,2.02096165]
[1760076170326,1e-08,121750.0,121740.0,1.78896165]
[1760076170565,1e-08,121750.0,121740.0,2.02096165]
[1760076171199,1e-08,121750.0,121740.0,1.78896165]
[1760076171408,1e-08,121750.0,121740.0,2.02096165]
[1760076172721,1e-08,121750.0,121740.0,2.04596164]
[1760076177162,1e-08,121750.0,121740.0,2.04592164]
[1760076178668,1e-08,121750.0,121740.0,2.04588164]
[1760076178885,1e-08,121750.0,121740.0,1.81396164]
[1760076179102,1e-08,121750.0,121740.0,2.13132164]
[1760076181572,1e-08,121750.0,121740.0,1.81396164]
[1760076181812,1e-08,121750.0,121740.0,1.49325862]
[1760076182102,1e-08,121750.0,121740.0,1.46825863]
[1760076182581,1e-08,121750.0,121740.0,1.70017863]
[1760076182754,1e-08,121750.0,121740.0,1.57017863]
[1760076182966,1e-08,121750.0,121740.0,1.89088165]
[1760076183367,1e-08,121750.0,121740.0,1.57017863]
[1760076184803,1e-08,121750.0,121740.0,1.33825863]
[1760076185018,1e-08,121750.0,121740.0,1.57021863]
[1760076185706,0.09393,121780.0,121770.0,0.0301519]
[1760076185941,0.11055086,121780.0,121770.0,0.29301802]
[1760076186572,0.34251086,121780.0,121770.0,0.30459802]
[1760076186778,0.34251086,121780.0,121770.0,0.33018462]
[1760076187418,0.11055086,121780.0,121770.0,0.33018462]
[1760076187626,0.34251086,121780.0,121770.0,0.33018462]
[1760076187833,0.11055086,121780.0,121770.0,0.33018462]
[1760076188258,0.34247086,121780.0,121770.0,0.33018462]
[1760076188910,0.27478143,121780.0,121770.0,0.33018462]
[1760076189131,0.27478143,121780.0,121770.0,0.16594056]
[1760076189357,0.82740445,121780.0,121770.0,0.33018462]
[1760076190551,0.60382483,121780.0,121770.0,0.33018462]
[1760076190772,0.83574483,121780.0,121770.0,0.33018462]
[1760076191003,0.83574483,121780.0,121770.0,0.16594056]
[1760076191268,0.94225785,121780.0,121770.0,0.00091794]
[1760076191497,0.94379448,121780.0,121770.0,0.00091794]
[1760076191972,1.18341319,121780.0,121770.0,0.00091794]
[1760076192194,0.94379448,121780.0,121770.0,0.00091794]
[1760076192635,1.17571448,121780.0,121770.0,0.00091794]
[1760076192878,0.85935448,121780.0,121770.0,0.00091794]
[1760076193104,1.17671448,121780.0,121770.0,0.00091794]
[1760076193328,1.02479128,121780.0,121770.0,0.00091794]
[1760076193557,1.25771128,121780.0,121770.0,0.00091794]
[1760076194717,0.53634844,121780.0,121770.0,0.00091794]
[1760076194997,1.17775448,121780.0,121770.0,0.00091794]
[1760076195521,0.96406675,121780.0,121770.0,0.00091794]
[1760076195975,0.96402675,121780.0,121770.0,0.00091794]
[1760076197320,0.53630844,121780.0,121770.0,0.00091794]
[1760076197597,0.96402675,121780.0,121770.0,0.00091794]
[1760076198605,0.53630844,121780.0,121770.0,0.00091794]
[1760076199026,0.96402675,121780.0,121770.0,0.00091794]
[1760076200542,0.87858675,121780.0,121770.0,0.00091794]
[1760076200858,0.96402675,121780.0,121770.0,0.00091794]
[1760076202673,1.0179399,121780.0,121770.0,0.00091794]
[1760076202889,0.96402675,121780.0,121770.0,0.00091794]
[1760076207822,1.30398675,121780.0,121770.0,0.00091794]
[1760076208012,1.07979466,121780.0,121770.0,0.00091794]
[1760076208257,1.65355466,121780.0,121770.0,0.00091794]
[1760076209073,1.67806826,121780.0,121770.0,0.00091794]
[1760076210532,1.67810826,121780.0,121770.0,0.00091794]
[1760076212165,1.67810634,121780.0,121770.0,0.00091794]
[1760076212579,1.65359274,121780.0,121770.0,0.00091794]
[1760076213120,1.42167274,121780.0,121770.0,0.00091794]
[1760076213340,1.65359274,121780.0,121770.0,0.00091794]
[1760076213529,1.42167274,121780.0,121770.0,0.00091794]
[1760076213773,1.65359274,121780.0,121770.0,0.00091794]
[1760076214461,1.73358954,121780.0,121770.0,0.00091794]
[1760076216049,1.8167116,121780.0,121770.0,0.00091794]
[1760076218652,1.81671382,121780.0,121770.0,0.00091794]
[1760076219582,1.58479382,121780.0,121770.0,0.00091794]
[1760076219798,1.30899871,121780.0,121770.0,0.00091794]
[1760076220021,1.30903871,121780.0,121770.0,0.00091794]
[1760076220246,1.75213733,121780.0,121770.0,0.00091794]
[1760076220481,1.09285733,121780.0,121770.0,0.00091794]
[1760076220911,1.75217733,121780.0,121770.0,0.00091794]
[1760076221302,1.78260171,121780.0,121770.0,0.00091794]
[1760076221751,1.55068171,121780.0,121770.0,0.00091794]
[1760076221955,1.78260171,121780.0,121770.0,0.00091794]
[1760076222544,1.12328171,121780.0,121770.0,0.00091794]
[1760076222753,1.78260171,121780.0,121770.0,0.00091794]
[1760076222970,1.59326028,121780.0,121770.0,0.00091794]
[1760076223190,1.5628359,121780.0,121770.0,0.00091794]
[1760076223413,1.72706954,121780.0,121770.0,0.00091794]
[1760076223633,1.72702954,121780.0,121770.0,0.00091794]
[1760076225971,1.72766351,121780.0,121770.0,0.00091794]
[1760076226188,1.80766031,121780.0,121770.0,0.00091794]
[1760076227517,0.50425755,121760.0,121750.0,0.00019347]
[1760076227725,1.59926545,121760.0,121750.0,0.00019347]
[1760076227934,1.59977774,121760.0,121750.0,0.00019347]
[1760076228135,1.17205943,121760.0,121750.0,0.00019347]
[1760076228347,0.94017943,121760.0,121750.0,0.00019347]
[1760076228553,1.17213943,121760.0,121750.0,0.00019347]
[1760076229618,0.94017943,121760.0,121750.0,0.00019347]
[1760076229828,1.17213943,121760.0,121750.0,0.00019347]
[1760076230903,1.17213943,121760.0,121730.0,0.01344022]
[1760076230904,0.16428454,121740.0,121730.0,0.02121021]
[1760076231151,0.48172454,121740.0,121730.0,0.02121021]
[1760076231384,0.48172454,121740.0,121730.0,0.03686021]
[1760076232103,0.48172454,121740.0,121730.0,0.03736337]
[1760076233574,0.16428454,121740.0,121730.0,0.2016614]
[1760076233802,0.08548,121740.0,121730.0,0.2256214]
[1760076234248,0.31748,121740.0,121730.0,0.2256214]
[1760076234466,0.08548,121740.0,121730.0,0.2256214]
[1760076234694,0.31748,121740.0,121730.0,0.2256214]
[1760076236730,0.316996,121740.0,121730.0,0.2256214]
[1760076239584,0.31748,121740.0,121730.0,0.2256214]
[1760076239833,0.31744,121740.0,121730.0,0.2256214]
[1760076240053,0.16427117,121750.0,121730.0,0.2256214]
[1760076240266,0.31744,121740.0,121730.0,0.2256214]
[1760076242278,0.24976454,121740.0,121730.0,0.2256214]
[1760076242497,0.48172454,121740.0,121730.0,0.2256214]
[1760076243765,0.08548,121740.0,121730.0,0.2256214]
[1760076243969,0.31744,121740.0,121730.0,0.2256214]
[1760076244438,0.16427117,121750.0,121730.0,0.2256214]
[1760076244664,0.16427117,121750.0,121740.0,0.01218]
[1760076244882,0.48171117,121750.0,121740.0,0.01218]
[1760076245130,0.48171117,121750.0,121740.0,0.02724]
[1760076245353,0.08548,121750.0,121740.0,0.21523454]
[1760076245582,0.48171104,121750.0,121740.0,0.21523454]
[1760076246262,0.24975104,121750.0,121740.0,0.21523454]
[1760076246478,0.48171104,121750.0,121740.0,0.02724]
[1760076246693,0.67746935,121750.0,121740.0,0.02724]
[1760076246917,0.90942935,121750.0,121740.0,0.02724]
[1760076247398,0.98942615,121750.0,121730.0,0.23439822]
[1760076247629,0.90942935,121750.0,121730.0,0.31752028]
[1760076248155,0.08548,121740.0,121730.0,0.34767218]
[1760076248378,0.08548,121740.0,121730.0,0.36273218]
[1760076248615,0.67748285,121740.0,121730.0,0.02855847]
[1760076248832,0.67748285,121740.0,121730.0,0.1928565]
[1760076248833,0.48168454,121740.0,121730.0,0.1928565]
[1760076249273,0.24976454,121740.0,121730.0,0.1928565]
[1760076249519,0.48168454,121740.0,121730.0,0.1928565]
[1760076249762,0.48172454,121740.0,121730.0,0.2165665]
[1760076250218,0.48172454,121740.0,121730.0,0.1928565]
[1760076250429,0.24976454,121740.0,121730.0,0.1928565]
[1760076250641,0.48172454,121740.0,121730.0,0.1928565]
[1760076251330,0.48172454,121740.0,121730.0,0.02855847]
[1760076251800,0.48172454,121740.0,121730.0,0.1928565]
[1760076252695,0.48172454,121740.0,121730.0,0.2165665]
[1760076253025,0.24976454,121740.0,121730.0,0.2165665]
[1760076253258,0.48168454,121740.0,121730.0,0.2165665]
[1760076253550,0.06315362,121750.0,121730.0,0.2165665]
[1760076253981,0.3174,121740.0,121730.0,0.2165665]
[1760076255609,0.08548,121740.0,121730.0,0.2165665]
[1760076255885,0.3174,121740.0,121730.0,0.53764147]
[1760076257080,0.3174,121740.0,121730.0,0.21675953]
[1760076257313,0.3174,121740.0,121730.0,0.53764147]
[1760076258035,0.38403556,121750.0,121730.0,0.53764147]
[1760076258244,0.3174,121740.0,121730.0,0.53764147]
[1760076258720,0.08548,121740.0,121730.0,0.53764147]
[1760076258923,0.3174,121740.0,121730.0,0.53764147]
[1760076259135,0.31736,121740.0,121730.0,0.53764147]
[1760076259346,0.08548,121740.0,121730.0,0.53764147]
[1760076259588,0.31736,121740.0,121730.0,0.53764147]
[1760076261381,0.08548,121740.0,121730.0,0.53764147]
[1760076261609,0.31736,121740.0,121730.0,0.53764147]
[1760076262201,0.08548,121740.0,121730.0,0.53764147]
[1760076262429,0.24976454,121740.0,121730.0,0.19304953]
[1760076262640,0.48164454,121740.0,121730.0,0.21675953]
[1760076263570,0.24976454,121740.0,121730.0,0.21675953]
[1760076263793,0.48164454,121740.0,121730.0,0.21675953]
[1760076267444,0.24976454,121740.0,121730.0,0.19304953]
[1760076267660,0.48164454,121740.0,121730.0,0.21675953]
[1760076268096,0.48164454,121740.0,121730.0,0.24143777]
[1760076268605,0.48973874,121740.0,121730.0,0.24143777]
[1760076269030,0.48164454,121740.0,121730.0,0.24143777]
[1760076274753,0.07122157,121750.0,121730.0,0.24143777]
[1760076274965,0.08548,121740.0,121730.0,0.24143777]
[1760076275163,0.31736,121740.0,121730.0,0.56231971]
[1760076275362,0.48164454,121740.0,121730.0,0.53764147]
[1760076275565,0.16428454,121740.0,121730.0,0.56231971]
[1760076275727,0.31736,121740.0,121730.0,0.56231971]
[1760076277788,0.38403556,121750.0,121730.0,0.56231971]
[1760076278003,0.31736,121740.0,121730.0,0.53860971]
[1760076278236,0.06315362,121750.0,121740.0,0.20047454]
[1760076278237,0.08548,121750.0,121740.0,0.20047454]
[1760076278487,0.08548,121750.0,121740.0,0.95551238]
[1760076278701,0.08548,121750.0,121740.0,0.97166238]
[1760076278702,0.31736,121750.0,121740.0,0.97166238]
[1760076278918,0.08548,121750.0,121740.0,0.97166238]
[1760076279342,0.31736,121750.0,121740.0,0.99633587]
[1760076280417,0.08548,121750.0,121740.0,0.99633587]
[1760076280630,0.31736,121750.0,121740.0,0.99633587]
[1760076280841,0.00051229,121760.0,121740.0,0.99633587]
[1760076280842,0.00051229,121760.0,121750.0,0.19442294]
[1760076281114,0.31783229,121760.0,121750.0,0.63461694]
[1760076281331,0.31783229,121760.0,121750.0,0.65076694]
[1760076281552,0.00051229,121760.0,121750.0,0.65076694]
[1760076281764,0.23235229,121760.0,121750.0,0.67544043]
[1760076281978,0.00051229,121760.0,121750.0,0.67544043]
[1760076282191,0.31783229,121760.0,121750.0,0.67544043]
[1760076282871,0.00051229,121760.0,121750.0,0.67544043]
[1760076283084,0.23239229,121760.0,121750.0,0.67544043]
[1760076283736,0.00051229,121760.0,121750.0,0.67544043]
[1760076283963,0.23239229,121760.0,121750.0,0.67544043]
[1760076284175,0.00051229,121760.0,121750.0,0.67544043]
[1760076284600,0.20775229,121760.0,121750.0,0.67544043]
[1760076285041,0.20775229,121760.0,121750.0,0.68383152]
[1760076285660,0.20775229,121760.0,121750.0,0.36294958]
[1760076285879,0.20775229,121760.0,121750.0,0.68383152]
[1760076289330,0.00051229,121760.0,121750.0,0.35455849]
[1760076289559,0.23235229,121760.0,121750.0,0.67544043]
[1760076290735,0.23235229,121760.0,121750.0,0.68363982]
[1760076291586,0.23235229,121760.0,121750.0,0.67544043]
[1760076291799,0.00051229,121760.0,121750.0,0.67544043]
[1760076292026,0.23235229,121760.0,121750.0,0.67544043]
[1760076297087,0.00051229,121760.0,121750.0,0.67544043]
[1760076297710,0.23235229,121760.0,121750.0,0.67544043]
[1760076299366,0.00051229,121760.0,121750.0,0.99632237]
[1760076299541,0.00051229,121760.0,121750.0,1.22816237]
[1760076299754,0.00051229,121760.0,121750.0,1.56816237]
[1760076301347,0.00051229,121760.0,121750.0,1.33632237]
[1760076302004,0.00051229,121760.0,121750.0,1.56816237]
[1760076302915,0.00051229,121760.0,121750.0,1.33632237]
[1760076303136,0.00051229,121760.0,121750.0,1.56812237]
[1760076305141,0.00051229,121760.0,121750.0,1.33632237]
[1760076305601,0.00051229,121760.0,121750.0,1.56812237]
[1760076306268,0.00051229,121760.0,121750.0,1.33632237]
[1760076306478,0.00051229,121760.0,121750.0,1.56812237]
[1760076308515,0.00051229,121760.0,121750.0,1.33632237]
[1760076308944,0.00051229,121760.0,121750.0,1.56812237]
[1760076309380,0.00051229,121760.0,121750.0,1.56831537]
[1760076311007,0.00051229,121760.0,121750.0,1.33651537]
[1760076311220,0.00051229,121760.0,121750.0,1.56827537]
[1760076312593,0.00051229,121760.0,121750.0,1.69827537]
[1760076312803,0.00051229,121760.0,121750.0,2.01915731]
[1760076313904,0.00051229,121760.0,121750.0,1.69827537]
[1760076315288,0.00051229,121760.0,121750.0,2.01915731]
[1760076316632,0.06646503,121790.0,121780.0,0.19438247]
[1760076316863,0.06646503,121790.0,121780.0,0.96995841]
[1760076317292,0.00027,121790.0,121780.0,0.96995841]
[1760076317481,0.00027,121790.0,121780.0,1.01189308]
[1760076317919,0.00032026,121790.0,121780.0,1.01189308]
[1760076318840,0.00032026,121790.0,121780.0,0.78013308]
[1760076319076,0.0002,121800.0,121790.0,0.19436899]
[1760076319298,0.0002,121800.0,121790.0,1.50742051]
[1760076319539,0.0002,121820.0,121810.0,0.59146486]
[1760076319752,0.0002,121820.0,121810.0,0.68645692]
[1760076319974,0.0002,121820.0,121810.0,0.72527692]
[1760076320193,0.0002,121820.0,121810.0,0.29800219]
[1760076320617,0.0002,121820.0,121810.0,0.74993545]
[1760076322180,0.0002,121820.0,121810.0,0.32266072]
[1760076322397,0.0037169,121820.0,121810.0,0.32266072]
[1760076324366,0.01137854,121820.0,121810.0,0.32266072]
[1760076327480,0.01137854,121820.0,121810.0,0.74993545]
[1760076329422,0.01137854,121820.0,121810.0,0.78008735]
[1760076332472,0.01137854,121820.0,121810.0,0.58473262]
[1760076332685,0.01137854,121820.0,121810.0,0.78008735]
[1760076333133,0.01137854,121820.0,121810.0,0.35281262]
[1760076333351,0.01137854,121820.0,121810.0,0.78008735]
[1760076335040,0.01137854,121820.0,121810.0,0.35281262]
[1760076336338,0.01137854,121820.0,121810.0,0.78008735]
[1760076337175,0.0037169,121820.0,121810.0,0.78008735]
[1760076337382,0.01138078,121820.0,121810.0,0.78008735]
[1760076338113,0.0037169,121820.0,121810.0,0.78008735]
[1760076339372,0.01138259,121820.0,121810.0,0.78008735]
[1760076340048,0.0037169,121820.0,121810.0,0.78008735]
[1760076340257,0.01138375,121820.0,121810.0,0.78008735]
[1760076341250,0.0037169,121820.0,121810.0,0.78008735]
[1760076341470,0.01138441,121820.0,121810.0,0.78008735]
[1760076341687,0.01138441,121820.0,121810.0,0.35281262]
[1760076343357,0.01138441,121820.0,121810.0,0.78008735]
[1760076345765,0.01138441,121820.0,121810.0,0.35281262]
[1760076345993,0.01138441,121820.0,121810.0,0.78008735]
[1760076355341,0.0037169,121820.0,121810.0,0.78008735]
[1760076355958,0.0037169,121820.0,121810.0,0.35281262]
[1760076357890,0.0037169,121820.0,121810.0,0.78008735]
[1760076358098,0.0037169,121820.0,121810.0,1.01180735]
[1760076358718,0.0037169,121820.0,121810.0,0.58453262]
[1760076358880,0.0037169,121820.0,121810.0,1.01180735]
[1760076359971,0.0037169,121820.0,121810.0,0.35281262]
[1760076360216,0.0037169,121820.0,121810.0,1.01184735]
[1760076361538,0.0037169,121820.0,121810.0,0.78008735]
[1760076361774,0.0037169,121820.0,121810.0,1.01184735]
[1760076362635,0.0037169,121820.0,121810.0,0.78008735]
[1760076362914,0.0037169,121820.0,121810.0,1.01184735]
[1760076363376,0.0037169,121820.0,121810.0,1.01180735]
[1760076367592,0.0037169,121820.0,121810.0,0.78008735]
[1760076367802,0.0037169,121820.0,121810.0,1.01180735]
[1760076368445,0.0037169,121820.0,121810.0,0.78008735]
[1760076368654,0.0037169,121820.0,121810.0,1.01180735]
[1760076375467,0.0037169,121820.0,121810.0,1.01176735]
[1760076376529,0.0037169,121820.0,121810.0,0.78008735]
[1760076376764,0.0037169,121820.0,121810.0,0.58449262]
[1760076376984,0.0037169,121820.0,121810.0,1.01176735]
[1760076377622,0.0037169,121820.0,121810.0,0.90485511]
[1760076380835,0.0037169,121820.0,121810.0,0.35281262]
[1760076381065,0.0037169,121820.0,121810.0,0.67317511]
[1760076381290,0.0037169,121820.0,121810.0,0.90485511]
[1760076381717,0.0037169,121820.0,121810.0,0.58449262]
[1760076381949,0.0037169,121820.0,121810.0,0.90485511]
[1760076382913,0.0037169,121820.0,121810.0,0.67317511]
[1760076383135,0.0037169,121820.0,121810.0,0.90485511]
[1760076383554,0.0037169,121820.0,121810.0,0.67317511]
[1760076383754,0.0037169,121820.0,121810.0,0.58449262]
[1760076383963,0.0037169,121820.0,121810.0,0.67317511]
[1760076384172,0.0037169,121820.0,121810.0,0.90485511]
[1760076385863,0.0037169,121820.0,121810.0,0.35281262]
[1760076386144,0.0037169,121820.0,121810.0,0.67317511]
[1760076389509,0.0037169,121820.0,121810.0,0.35281262]
[1760076390008,0.0037169,121820.0,121810.0,0.67317511]
[1760076394394,0.05792501,121830.0,121810.0,0.67317511]